bitfinex/quotes_BTCUSD_20240828
["timestamp","ask_amount","ask_price","bid_price","bid_amount"]
[1724853296352,0.50306691,59848.0,59838.0,0.04961219]
[1724853296353,0.501277,59847.0,59846.0,0.008]
[1724853296616,0.167096,59846.0,59842.0,0.167106]
[1724853296846,0.167098,59845.0,59839.0,0.334224]
[1724853297088,0.167098,59845.0,59838.0,0.04961219]
[1724853297089,0.33422,59841.0,59838.0,0.04961219]
[1724853297345,0.167107,59842.0,59838.0,0.21672819]
[1724853297589,0.167107,59842.0,59837.0,0.334239]
[1724853297590,0.19329654,59844.0,59840.0,0.16711]
[1724853297812,0.19329654,59844.0,59837.0,0.334239]
[1724853297813,0.02619554,59844.0,59841.0,0.00334196]
[1724853298034,0.02619554,59844.0,59843.0,0.50131]
[1724853298253,0.02619554,59844.0,59843.0,0.167103]
[1724853298477,0.02619554,59844.0,59843.0,0.50465164]
[1724853298689,0.02619554,59844.0,59843.0,0.167103]
[1724853298902,0.02619554,59844.0,59843.0,0.1704447]
[1724853299113,0.02719554,59844.0,59843.0,0.167103]
[1724853299768,0.02719554,59844.0,59843.0,0.50131]
[1724853300012,0.02719554,59844.0,59843.0,1.249124]
[1724853300492,0.02719554,59844.0,59843.0,1.262124]
[1724853300749,0.02719554,59844.0,59843.0,1.275124]
[1724853300978,0.02819554,59844.0,59843.0,0.52731]
[1724853301204,0.02819554,59844.0,59843.0,0.026]
[1724853301887,0.02819554,59844.0,59843.0,0.193103]
[1724853302125,0.02819554,59844.0,59843.0,0.52731]
[1724853302582,0.02819554,59844.0,59843.0,0.861517]
[1724853302584,0.02819554,59844.0,59843.0,1.36418477]
[1724853302818,0.02819554,59844.0,59843.0,1.43938477]
[1724853303582,0.002,59844.0,59843.0,1.43938477]
[1724853304816,0.002,59844.0,59843.0,1.44438477]
[1724853305072,0.002,59844.0,59843.0,1.80179286]
[1724853305331,0.002,59844.0,59843.0,1.46738477]
[1724853305586,0.002,59844.0,59843.0,1.46238477]
[1724853305812,0.002,59844.0,59843.0,1.46738477]
[1724853306052,0.001,59844.0,59843.0,1.45438477]
[1724853306564,0.002,59844.0,59843.0,1.46838477]
[1724853306786,0.002,59844.0,59843.0,1.46858586]
[1724853307010,0.334106,59862.0,59854.0,0.167071]
[1724853307262,0.334106,59862.0,59844.0,0.005]
[1724853307263,0.33589591,59863.0,59855.0,0.17041002]
[1724853307498,0.334111,59861.0,59855.0,0.00334102]
[1724853307731,0.334111,59861.0,59856.0,0.00775844]
[1724853307959,0.02619079,59862.0,59860.0,0.167056]
[1724853308183,0.02619079,59862.0,59858.0,0.334123]
[1724853308421,0.02619079,59862.0,59861.0,0.50116]
[1724853308673,0.02619079,59862.0,59861.0,0.835267]
[1724853309141,0.02619079,59862.0,59861.0,1.17713244]
[1724853309624,0.02619079,59862.0,59861.0,0.84302544]
[1724853310389,0.02619079,59862.0,59861.0,0.92132544]
[1724853310804,0.02619079,59862.0,59861.0,1.09378621]
[1724853311007,0.000819,59865.0,59864.0,0.835225]
[1724853311214,0.000819,59865.0,59864.0,1.169315]
[1724853311649,0.000819,59865.0,59864.0,0.84298344]
[1724853312309,0.000819,59865.0,59864.0,1.43343421]
[1724853312544,0.000819,59865.0,59864.0,1.8007253]
[1724853312763,0.000819,59865.0,59864.0,1.9007253]
[1724853312966,0.000819,59865.0,59864.0,1.91641223]
[1724853313903,0.000819,59865.0,59864.0,2.24850223]
[1724853314117,0.000819,59865.0,59864.0,2.24650178]
[1724853314330,0.000819,59874.0,59873.0,0.09760109]
[1724853314558,0.000819,59874.0,59873.0,1.08378817]
[1724853314781,0.000819,59874.0,59873.0,1.85186817]
[1724853314987,0.000819,59874.0,59873.0,2.52741513]
[1724853315486,0.000819,59874.0,59873.0,2.20737513]
[1724853316233,0.000819,59874.0,59873.0,2.22137513]
[1724853316478,0.000819,59879.0,59878.0,1.93466709]
[1724853316712,0.000819,59879.0,59878.0,2.22612786]
[1724853316948,0.000819,59879.0,59878.0,1.89211586]
[1724853317165,0.000819,59879.0,59878.0,1.89958282]
[1724853317371,0.000819,59879.0,59878.0,1.89211586]
[1724853318062,0.00819,59896.0,59895.0,1.255409]
[1724853318276,0.00819,59896.0,59895.0,1.06436303]
[1724853318492,0.00819,59896.0,59895.0,0.98266303]
[1724853318708,0.00819,59896.0,59895.0,0.62574603]
[1724853318942,0.00819,59896.0,59886.0,0.338963]
[1724853319161,0.00819,59896.0,59889.0,0.005]
[1724853319382,0.00819,59896.0,59895.0,0.166958]
[1724853319650,0.00819,59896.0,59895.0,0.007]
[1724853319867,1.317882,59896.0,59895.0,0.007]
[1724853320090,0.166975,59890.0,59884.0,0.04970025]
[1724853320306,0.483102,59896.0,59884.0,0.04970025]
[1724853320307,0.166968,59892.0,59886.0,0.007]
[1724853320546,0.33393,59893.0,59886.0,0.007]
[1724853320796,0.166959,59895.0,59887.0,0.00333911]
[1724853321032,0.166967,59892.0,59886.0,0.17546077]
[1724853321247,0.333924,59894.0,59886.0,0.17546077]
[1724853321485,0.166965,59893.0,59887.0,0.16698]
[1724853321728,0.16878491,59885.0,59884.0,0.04970025]
[1724853321947,0.83673091,59885.0,59884.0,0.04970025]
[1724853322168,0.167005,59879.0,59873.0,1.2685]
[1724853322394,0.167013,59876.0,59871.0,0.0793]
[1724853322611,0.14519891,59885.0,59873.0,0.04912881]
[1724853322612,0.167018,59874.0,59873.0,0.04912881]
[1724853322833,0.167018,59874.0,59865.0,0.4705]
[1724853322834,0.501118,59866.0,59865.0,0.4705]
[1724853323054,0.334067,59869.0,59864.0,1.271]
[1724853323288,0.334067,59869.0,59855.0,0.29032726]
[1724853323289,0.00100002,59873.0,59855.0,0.0793]
[1724853323499,0.33399,59882.0,59854.0,0.04912116]
[1724853323500,0.16707,59855.0,59854.0,0.04912116]
[1724853323744,0.0792,59867.0,59854.0,0.04912116]
[1724853323953,0.0792,59867.0,59852.0,0.167077]
[1724853323954,0.167057,59860.0,59852.0,0.167077]
[1724853324175,0.167057,59860.0,59853.0,0.0493802]
[1724853324393,0.00179891,59860.0,59853.0,0.2164552]
[1724853324618,0.230251,59862.0,59858.0,0.167061]
[1724853324619,0.0632,59862.0,59858.0,0.167061]
[1724853324833,0.1456,59867.0,59859.0,0.00334059]
[1724853325062,0.1456,59867.0,59860.0,0.167056]
[1724853325279,0.1456,59867.0,59854.0,0.16846077]
[1724853325280,0.1456,59867.0,59853.0,0.0493802]
[1724853325561,0.1456,59867.0,59854.0,0.334145]
[1724853325562,0.19322636,59866.0,59854.0,0.334145]
[1724853325765,0.02618636,59866.0,59855.0,0.29132726]
[1724853325999,0.02618636,59866.0,59861.0,0.167053]
[1724853326225,0.02618636,59866.0,59862.0,0.0033405]
[1724853326452,0.02618636,59866.0,59865.0,0.167042]
[1724853326669,0.02618636,59866.0,59864.0,0.00334049]
[1724853326885,0.02618636,59866.0,59863.0,0.00334052]
[1724853327332,0.02718636,59866.0,59863.0,0.00334052]
[1724853327545,0.02718636,59866.0,59864.0,0.00739672]
[1724853327982,0.02718636,59866.0,59864.0,0.01439672]
[1724853328220,0.02718636,59866.0,59864.0,0.01773723]
[1724853328444,0.02718636,59866.0,59865.0,0.167042]
[1724853328696,0.02618636,59866.0,59865.0,0.167042]
[1724853328918,0.02618636,59866.0,59865.0,0.00739784]
[1724853329360,0.02618636,59866.0,59865.0,0.17443984]
[1724853330267,0.02618636,59866.0,59865.0,0.84260984]
[1724853330698,0.02618636,59866.0,59865.0,0.18043984]
[1724853330917,0.02618636,59866.0,59865.0,0.18843984]
[1724853331135,0.02618636,59866.0,59865.0,0.52252484]
[1724853331578,0.02618636,59866.0,59865.0,0.85660984]
[1724853331791,0.02618636,59866.0,59865.0,1.19069484]
[1724853332458,0.02618636,59866.0,59865.0,1.18469484]
[1724853332896,0.02618636,59866.0,59865.0,1.35315561]
[1724853333154,0.0664,59873.0,59872.0,0.835112]
[1724853333397,0.00179891,59882.0,59868.0,0.334065]
[1724853333398,0.0754,59882.0,59881.0,0.500992]
[1724853333621,0.0636,59893.0,59886.0,0.50115109]
[1724853333852,0.09099,59896.0,59886.0,0.50115109]
[1724853333853,0.00819,59896.0,59886.0,1.41804477]
[1724853334067,0.00819,59896.0,59886.0,1.44859923]
[1724853334314,0.00819,59896.0,59886.0,1.44104477]
[1724853335246,0.00819,59896.0,59886.0,1.45504477]
[1724853335960,0.00819,59896.0,59886.0,1.45524586]
[1724853336875,0.00819,59896.0,59886.0,1.47424586]
[1724853337101,0.00819,59896.0,59886.0,1.48804477]
[1724853337325,0.00819,59896.0,59886.0,1.46004477]
[1724853337574,0.00819,59896.0,59886.0,1.44624586]
[1724853337825,0.00819,59896.0,59886.0,1.47424586]
[1724853338060,0.00819,59896.0,59886.0,1.46024586]
[1724853338280,0.00819,59896.0,59886.0,1.36534477]
[1724853338750,0.00819,59896.0,59886.0,1.35134477]
[1724853338959,0.00819,59896.0,59886.0,1.35154586]
[1724853339175,0.02617466,59895.0,59886.0,1.35154586]
[1724853339401,0.02617466,59895.0,59886.0,1.39354586]
[1724853339851,0.02617466,59895.0,59886.0,1.37954586]
[1724853340275,0.00819,59896.0,59886.0,1.37954586]
[1724853340498,0.00819,59896.0,59886.0,1.39354586]
[1724853340709,0.00819,59896.0,59886.0,1.37954586]
[1724853340905,0.00819,59896.0,59886.0,1.69951286]
[1724853341174,1e-08,59887.0,59886.0,1.91471286]
[1724853342042,1e-08,59887.0,59886.0,1.90071286]
[1724853342262,1e-08,59887.0,59886.0,1.88671286]
[1724853342702,1e-08,59887.0,59886.0,1.90071286]
[1724853343153,1e-08,59887.0,59886.0,1.55254477]
[1724853343405,1e-08,59887.0,59886.0,1.48934477]
[1724853343620,0.14640001,59887.0,59886.0,0.014]
[1724853343883,0.14640001,59887.0,59886.0,0.862917]
[1724853344094,0.06530001,59887.0,59886.0,1.168884]
[1724853344528,0.06530001,59887.0,59886.0,1.182884]
[1724853344761,0.06530001,59887.0,59886.0,0.166983]
[1724853344964,0.06530001,59887.0,59881.0,0.166997]
[1724853344965,0.166987,59885.0,59881.0,0.166997]
[1724853345428,0.14640001,59887.0,59876.0,0.33402]
[1724853345641,0.31338101,59887.0,59886.0,0.014]
[1724853345871,0.14640001,59887.0,59886.0,0.014]
[1724853346085,0.31338101,59887.0,59883.0,0.166991]
[1724853346506,0.33955819,59887.0,59883.0,0.166991]
[1724853346716,0.33955819,59887.0,59886.0,0.014]
[1724853347152,0.33955819,59887.0,59883.0,0.166991]
[1724853347361,0.17257719,59887.0,59884.0,0.166988]
[1724853347787,0.33955819,59887.0,59883.0,0.173991]
[1724853348215,0.17257719,59887.0,59886.0,0.174983]
[1724853348431,0.17257719,59887.0,59886.0,0.834917]
[1724853349138,0.17257719,59887.0,59886.0,0.841917]
[1724853349376,0.17257719,59887.0,59886.0,0.007]
[1724853350111,0.17257719,59887.0,59881.0,0.333995]
[1724853350332,0.17257719,59887.0,59886.0,0.013]
[1724853351007,0.17257719,59887.0,59886.0,0.021]
[1724853351435,0.17257719,59887.0,59886.0,0.187983]
[1724853351659,0.17257719,59887.0,59886.0,0.021]
[1724853351660,0.33955819,59887.0,59886.0,0.021]
[1724853351882,0.33955819,59887.0,59877.0,0.167009]
[1724853351883,0.0772,59878.0,59877.0,0.167009]
[1724853352100,0.0772,59878.0,59870.0,0.04980849]
[1724853352101,0.334033,59875.0,59870.0,0.04980849]
[1724853352331,0.167023,59872.0,59870.0,0.04980849]
[1724853352545,0.16702,59873.0,59869.0,0.167029]
[1724853352761,0.07899891,59874.0,59865.0,0.3349819]
[1724853352762,0.0609,59868.0,59865.0,0.0009009]
[1724853352998,0.24603791,59866.0,59865.0,0.0009009]
[1724853353212,0.58011691,59866.0,59865.0,0.0009009]
[1724853353685,0.98069591,59866.0,59865.0,0.0009009]
[1724853353916,0.1437,59866.0,59865.0,0.0009009]
[1724853354123,0.1437,59866.0,59865.0,0.5020279]
[1724853354866,0.1437,59866.0,59865.0,0.1719429]
[1724853355103,0.1437,59866.0,59865.0,0.5020279]
[1724853355104,0.0665,59866.0,59865.0,0.5020279]
[1724853355538,0.0665,59866.0,59865.0,0.5060279]
[1724853355755,0.0658,59871.0,59870.0,0.167028]
[1724853355971,0.0658,59871.0,59870.0,0.501085]
[1724853356638,0.00100002,59895.0,59877.0,0.501027]
[1724853356855,0.09038051,59885.0,59877.0,0.16846077]
[1724853357302,0.09038051,59885.0,59884.0,0.500968]
[1724853357734,0.09038051,59885.0,59884.0,0.834947]
[1724853358209,0.09038051,59885.0,59884.0,0.500968]
[1724853358403,0.09217942,59885.0,59884.0,0.166989]
[1724853358877,0.09038051,59885.0,59884.0,0.500968]
[1724853359088,0.09038051,59885.0,59884.0,0.166989]
[1724853359327,0.09038051,59885.0,59884.0,0.834947]
[1724853359560,0.09038051,59885.0,59884.0,0.500968]
[1724853359845,0.09038051,59885.0,59884.0,0.507968]
[1724853360071,0.09038051,59885.0,59884.0,0.184989]
[1724853360287,0.42435351,59885.0,59884.0,0.018]
[1724853360518,0.42435351,59885.0,59884.0,0.007]
[1724853360519,0.66763951,59885.0,59884.0,0.007]
[1724853360744,0.66763951,59885.0,59875.0,0.334025]
[1724853360745,0.501051,59874.0,59873.0,0.04951653]
[1724853360954,0.914885,59874.0,59873.0,0.04951653]
[1724853361203,0.501076,59871.0,59865.0,0.0009009]
[1724853361431,0.08159891,59871.0,59865.0,0.0009009]
[1724853361661,0.08159891,59871.0,59869.0,0.16703]
[1724853361662,0.0798,59871.0,59869.0,0.16703]
[1724853361889,0.0798,59871.0,59868.0,0.167032]
[1724853362106,0.246825,59871.0,59865.0,0.3349839]
[1724853362337,0.0798,59871.0,59868.0,0.167033]
[1724853362549,0.0798,59871.0,59865.0,0.3349839]
[1724853362763,0.0798,59871.0,59867.0,0.167035]
[1724853363215,0.0798,59871.0,59870.0,0.5019859]
[1724853363434,0.0649,59874.0,59870.0,0.5019859]
[1724853363435,0.0649,59874.0,59873.0,0.16702]
[1724853365034,0.0649,59874.0,59870.0,0.1749279]
[1724853365276,0.0649,59874.0,59870.0,0.3419569]
[1724853365498,0.0649,59874.0,59873.0,0.16702]
[1724853365717,0.395798,59881.0,59874.0,0.167016]
[1724853365944,0.0618,59881.0,59874.0,0.33403]
[1724853366215,0.167008,59878.0,59873.0,0.006]
[1724853366458,0.568351,59874.0,59873.0,0.006]
[1724853366704,0.981785,59874.0,59873.0,0.006]
[1724853366910,0.501076,59871.0,59870.0,0.0009009]
[1724853367165,0.83692591,59871.0,59870.0,0.0009009]
[1724853367394,1.31667691,59871.0,59870.0,0.0009009]
[1724853367617,1.34285997,59871.0,59870.0,0.0009009]
[1724853368377,1.00880897,59871.0,59870.0,0.0009009]
[1724853368609,1.00880897,59871.0,59870.0,0.0069009]
[1724853369066,1.00880897,59871.0,59870.0,0.0009009]
[1724853369312,1.44285997,59871.0,59870.0,0.0009009]
[1724853369522,1.58794597,59871.0,59870.0,0.0019009]
[1724853369735,1.58794597,59871.0,59870.0,0.0009009]
[1724853370436,2.08902597,59871.0,59870.0,0.0009009]
[1724853370891,2.08902597,59871.0,59865.0,0.0009009]
[1724853370892,1.25297491,59866.0,59865.0,0.0009009]
[1724853371118,1.82005491,59866.0,59865.0,0.0009009]
[1724853371416,2.25213391,59866.0,59865.0,0.0009009]
[1724853371853,2.25413391,59866.0,59865.0,0.0009009]
[1724853372064,0.00179891,59846.0,59845.0,0.55481254]
[1724853372527,0.50287891,59846.0,59844.0,0.1671]
[1724853372960,0.50287891,59846.0,59843.0,0.0009009]
[1724853373417,1.51057277,59846.0,59845.0,0.009]
[1724853373636,1.51057277,59846.0,59843.0,0.0009009]
[1724853373637,0.835505,59844.0,59843.0,0.0009009]
[1724853373862,1.754187,59844.0,59843.0,0.0009009]
[1724853374085,1.85098591,59844.0,59843.0,0.0009009]
[1724853374533,1.91578591,59844.0,59843.0,0.0009009]
[1724853374751,1.58158391,59844.0,59843.0,0.0009009]
[1724853374967,0.74607891,59844.0,59843.0,0.0009009]
[1724853375188,0.81317991,59844.0,59843.0,0.0009009]
[1724853375417,0.52727777,59844.0,59843.0,0.1680039]
[1724853375627,0.53327777,59844.0,59843.0,0.0019009]
[1724853375850,0.54427777,59844.0,59843.0,0.1690039]
[1724853376067,0.53827777,59844.0,59843.0,0.8364179]
[1724853376306,0.52727777,59844.0,59843.0,0.512274]
[1724853376940,0.52727777,59844.0,59843.0,0.846481]
[1724853377151,0.52727777,59844.0,59843.0,0.922981]
[1724853378451,0.52727777,59844.0,59843.0,1.257188]
[1724853378632,0.52727777,59844.0,59843.0,0.920981]
[1724853378922,0.52827777,59844.0,59843.0,0.920981]
[1724853379353,0.52827777,59844.0,59843.0,0.851481]
[1724853379827,0.52927777,59844.0,59843.0,0.851481]
[1724853380037,0.52827777,59844.0,59843.0,0.176067]
[1724853380254,0.52727777,59844.0,59843.0,0.176067]
[1724853380473,0.52727777,59844.0,59843.0,0.008964]
[1724853380700,1.42568168,59844.0,59843.0,0.008964]
[1724853381131,1.42568168,59844.0,59843.0,0.0009009]
[1724853381349,1.76088368,59844.0,59843.0,0.0079009]
[1724853381569,1.42568168,59844.0,59843.0,0.0009009]
[1724853381786,1.76088368,59844.0,59843.0,0.0009009]
[1724853381997,1.76188368,59844.0,59843.0,0.0009009]
[1724853382212,1.76088368,59844.0,59843.0,0.0009009]
[1724853382632,1.75988368,59844.0,59843.0,0.0009009]
[1724853383702,1.42568168,59844.0,59843.0,0.0009009]
[1724853384621,1.42668168,59844.0,59843.0,0.0009009]
[1724853384855,0.729281,59844.0,59843.0,0.0009009]
[1724853385330,1.47598391,59844.0,59843.0,0.00886308]
[1724853385540,1.47598391,59844.0,59843.0,0.0009009]
[1724853385757,1.81018591,59844.0,59843.0,0.0009009]
[1724853385984,1.80918591,59844.0,59843.0,0.0009009]
[1724853386197,1.81018591,59844.0,59843.0,0.0009009]
[1724853386418,1.47498391,59844.0,59843.0,0.0009009]
[1724853386657,0.56218,59844.0,59843.0,0.0009009]
[1724853386894,0.50108,59844.0,59843.0,0.8364179]
[1724853387107,0.50108,59844.0,59843.0,0.84459693]
[1724853387331,0.50108,59844.0,59843.0,0.51038993]
[1724853387766,0.50108,59844.0,59843.0,0.84459693]
[1724853388411,0.50208,59844.0,59843.0,0.84459693]
[1724853388633,0.50108,59844.0,59843.0,0.84459693]
[1724853388844,0.50208,59844.0,59843.0,0.84459693]
[1724853389062,0.50308,59844.0,59843.0,0.84959693]
[1724853389288,0.50108,59844.0,59843.0,1.4226647]
[1724853389744,0.50108,59844.0,59843.0,1.4276647]
[1724853389745,0.50208,59844.0,59843.0,1.4276647]
[1724853389965,0.50108,59844.0,59843.0,1.4226647]
[1724853390182,0.50208,59844.0,59843.0,1.4226647]
[1724853390405,0.50308,59844.0,59843.0,1.4276647]
[1724853390843,0.50308,59844.0,59843.0,1.7898717]
[1724853391285,0.50308,59844.0,59843.0,1.80687279]
[1724853391498,0.50208,59844.0,59843.0,1.80687279]
[1724853392003,0.50308,59844.0,59843.0,1.4444647]
[1724853392247,0.50208,59844.0,59843.0,1.4394647]
[1724853392468,0.50208,59844.0,59843.0,1.4734647]
[1724853392692,0.50308,59844.0,59843.0,1.4734647]
[1724853392908,0.50208,59844.0,59843.0,1.46766579]
[1724853393133,0.50308,59844.0,59843.0,1.4684647]
[1724853393367,0.50208,59844.0,59843.0,1.4624647]
[1724853393805,0.50308,59844.0,59843.0,1.4684647]
[1724853394060,0.50108,59844.0,59843.0,1.4624647]
[1724853394516,0.50108,59844.0,59843.0,0.91999693]
[1724853395204,0.50108,59844.0,59843.0,0.84459693]
[1724853395632,0.50208,59844.0,59843.0,0.85559693]
[1724853395835,0.50108,59844.0,59843.0,0.84459693]
[1724853396256,0.50308,59844.0,59843.0,0.86859693]
[1724853396463,0.50208,59844.0,59843.0,0.52338993]
[1724853396679,0.50208,59844.0,59843.0,0.51038993]
[1724853396902,0.50208,59844.0,59843.0,0.52138993]
[1724853397153,0.50208,59844.0,59843.0,0.02207993]
[1724853397154,0.50308,59844.0,59843.0,0.02207993]
[1724853397395,0.749481,59844.0,59843.0,0.03307993]
[1724853397637,0.52927221,59844.0,59843.0,0.0119009]
[1724853397854,0.52927221,59844.0,59843.0,0.5132109]
[1724853398094,0.52927221,59844.0,59843.0,0.5262109]
[1724853398095,0.53027221,59844.0,59843.0,0.5262109]
[1724853398303,0.53027221,59844.0,59843.0,0.53379294]
[1724853398962,0.52827221,59844.0,59843.0,0.18858594]
[1724853399179,0.52927221,59844.0,59843.0,0.19958594]
[1724853399417,0.52827221,59844.0,59843.0,0.17558594]
[1724853399648,0.69537321,59844.0,59843.0,0.02148294]
[1724853399889,0.69537321,59844.0,59843.0,0.0249009]
[1724853399890,1.17437521,59844.0,59843.0,0.0249009]
[1724853400104,1.50857721,59844.0,59843.0,0.0249009]
[1724853401020,1.816587,59844.0,59843.0,0.0249009]
[1724853401443,1.816587,59844.0,59829.0,0.04905248]
[1724853401444,0.50142,59830.0,59829.0,0.04905248]
[1724853401657,1.48088,59830.0,59829.0,0.04905248]
[1724853401863,1.48088,59830.0,59826.0,0.009009]
[1724853401864,0.835742,59827.0,59826.0,0.009009]
[1724853402099,1.002525,59827.0,59826.0,0.009009]
[1724853402741,1.00432391,59827.0,59826.0,0.009009]
[1724853403569,1.00532391,59827.0,59826.0,0.016009]
[1724853403795,1.5961633,59827.0,59826.0,0.016009]
[1724853404004,1.48222091,59827.0,59826.0,0.023009]
[1724853404215,0.83759591,59823.0,59822.0,0.00020123]
[1724853404420,1.83304907,59823.0,59822.0,0.00020123]
[1724853404645,2.26736807,59823.0,59822.0,0.00020123]
[1724853405079,1.91459491,59823.0,59822.0,0.00020123]
[1724853405952,1.94080403,59823.0,59822.0,0.00020123]
[1724853406159,2.27512303,59823.0,59822.0,0.00020123]
[1724853408517,2.04361832,59823.0,59822.0,0.00020123]
[1724853408773,2.38293732,59823.0,59822.0,0.00020123]
[1724853409028,2.38293732,59823.0,59818.0,0.009009]
[1724853409029,1.17199191,59819.0,59818.0,0.009009]
[1724853409246,2.15471291,59819.0,59818.0,0.009009]
[1724853409466,2.24771291,59819.0,59818.0,0.009009]
[1724853409721,2.25271291,59819.0,59818.0,0.009009]
[1724853409950,2.24771291,59819.0,59818.0,0.009009]
[1724853410206,2.25271291,59819.0,59818.0,0.009009]
[1724853410423,2.42126455,59819.0,59818.0,0.009009]
[1724853410646,2.44926455,59819.0,59818.0,0.009009]
[1724853410865,2.43526455,59819.0,59818.0,0.009009]
[1724853411101,2.26171291,59819.0,59818.0,0.009009]
[1724853411329,2.27571291,59819.0,59818.0,0.009009]
[1724853412016,2.26171291,59819.0,59818.0,0.009009]
[1724853412453,2.27571291,59819.0,59818.0,0.009009]
[1724853412664,2.26171291,59819.0,59818.0,0.009009]
[1724853412916,2.43026455,59819.0,59818.0,0.009009]
[1724853413154,1.91337191,59819.0,59818.0,0.009009]
[1724853413372,1.59203091,59819.0,59818.0,0.009009]
[1724853413594,1.93937191,59819.0,59818.0,0.009009]
[1724853413808,1.91337191,59819.0,59818.0,0.009009]
[1724853414021,2.09492355,59819.0,59818.0,0.009009]
[1724853414245,2.10792355,59819.0,59818.0,0.009009]
[1724853414464,1.92637191,59819.0,59818.0,0.009009]
[1724853415341,1.91337191,59819.0,59818.0,0.009009]
[1724853415585,1.57903091,59819.0,59818.0,0.009009]
[1724853415802,1.60203091,59819.0,59818.0,0.009009]
[1724853416006,1.92437191,59819.0,59818.0,0.009009]
[1724853416242,1.91337191,59819.0,59818.0,0.009009]
[1724853416455,1.92637191,59819.0,59818.0,0.009009]
[1724853416882,1.91937191,59819.0,59818.0,0.009009]
[1724853417091,1.92037191,59819.0,59818.0,0.009009]
[1724853417298,1.91937191,59819.0,59818.0,0.009009]
[1724853417787,1.92637191,59819.0,59818.0,0.009009]
[1724853418259,1.61824014,59819.0,59818.0,0.009009]
[1724853418472,1.54294014,59819.0,59818.0,0.009009]
[1724853418684,1.53694014,59819.0,59818.0,0.009009]
[1724853418894,1.87128114,59819.0,59818.0,0.009009]
[1724853419109,2.12623278,59819.0,59818.0,0.009009]
[1724853419531,2.11323278,59819.0,59818.0,0.009009]
[1724853419946,1.95168114,59819.0,59818.0,0.009009]
[1724853420366,1.96068114,59819.0,59818.0,0.009009]
[1724853421200,2.27902214,59819.0,59818.0,0.009009]
[1724853421603,2.28502214,59819.0,59818.0,0.009009]
[1724853421842,2.29502214,59819.0,59818.0,0.009009]
[1724853422477,2.28502214,59819.0,59818.0,0.009009]
[1724853422685,2.29702214,59819.0,59818.0,0.009009]
[1724853422890,2.39626683,59819.0,59818.0,0.009009]
[1724853423100,2.40726683,59819.0,59818.0,0.009009]
[1724853423309,2.76960783,59819.0,59818.0,0.009009]
[1724853423516,2.76560783,59819.0,59818.0,0.009009]
[1724853423721,2.77807558,59819.0,59818.0,0.009009]
[1724853423929,2.76507558,59819.0,59818.0,0.009009]
[1724853424348,2.77907558,59819.0,59818.0,0.009009]
[1724853424559,2.7772423,59819.0,59818.0,0.009009]
[1724853425193,2.7772423,59819.0,59805.0,0.009009]
[1724853425194,0.00046775,59806.0,59805.0,0.009009]
[1724853425401,0.00046775,59806.0,59783.0,0.51441686]
[1724853425402,0.32611266,59792.0,59783.0,0.51441686]
[1724853425641,1.48117666,59792.0,59789.0,0.04978723]
[1724853425835,1.91566866,59792.0,59789.0,0.04978723]
[1724853426061,1.91566866,59792.0,59783.0,0.009009]
[1724853426062,1.58117666,59792.0,59783.0,0.009009]
[1724853426278,1.17018466,59792.0,59783.0,0.009009]
[1724853426489,1.50467666,59792.0,59783.0,0.009009]
[1724853426703,1.93486866,59792.0,59783.0,0.009009]
[1724853426921,2.42000833,59792.0,59783.0,0.009009]
[1724853427151,2.25336066,59792.0,59783.0,0.009009]
[1724853427377,2.28836066,59792.0,59783.0,0.009009]
[1724853427612,2.26536066,59792.0,59783.0,0.009009]
[1724853428034,2.27836066,59792.0,59783.0,0.009009]
[1724853428700,2.4469123,59792.0,59783.0,0.009009]
[1724853428927,2.4729123,59792.0,59783.0,0.009009]
[1724853429137,2.4869123,59792.0,59783.0,0.009009]
[1724853429348,2.50013738,59792.0,59783.0,0.009009]
[1724853429568,2.48613738,59792.0,59783.0,0.009009]
[1724853429780,2.50013738,59792.0,59783.0,0.009009]
[1724853430455,2.48813738,59792.0,59783.0,0.009009]
[1724853430663,2.48613738,59792.0,59783.0,0.009009]
[1724853430877,2.51413738,59792.0,59783.0,0.009009]
[1724853431088,2.50013738,59792.0,59783.0,0.009009]
[1724853431771,2.30858574,59792.0,59783.0,0.009009]
[1724853432000,2.28236066,59792.0,59783.0,0.009009]
[1724853432216,2.26836066,59792.0,59783.0,0.009009]
[1724853432437,1.93286866,59792.0,59783.0,0.009009]
[1724853432657,1.94686866,59792.0,59783.0,0.009009]
[1724853432877,2.0874203,59792.0,59783.0,0.009009]
[1724853433119,2.1014203,59792.0,59783.0,0.009009]
[1724853433343,2.4289123,59792.0,59783.0,0.009009]
[1724853433602,2.72946886,59792.0,59783.0,0.009009]
[1724853433812,1.25304566,59784.0,59783.0,0.009009]
[1724853434036,1.91642566,59784.0,59783.0,0.009009]
[1724853434686,2.25096266,59784.0,59783.0,0.009009]
[1724853434895,2.25596266,59784.0,59783.0,0.009009]
[1724853435331,2.28218816,59784.0,59783.0,0.009009]
[1724853435759,2.29018816,59784.0,59783.0,0.009009]
[1724853436034,2.4587398,59784.0,59783.0,0.009009]
[1724853436244,2.63672516,59784.0,59783.0,0.009009]
[1724853436493,2.63672516,59784.0,59766.0,0.05854196]
[1724853436494,1.32008066,59772.0,59766.0,0.05854196]
[1724853436723,1.32008066,59772.0,59766.0,0.009009]
[1724853436724,1.58155666,59772.0,59766.0,0.009009]
[1724853436932,1.91616066,59772.0,59766.0,0.009009]
[1724853437408,1.92116066,59772.0,59766.0,0.009009]
[1724853437645,1.91616066,59772.0,59766.0,0.009009]
[1724853437907,1.91616066,59772.0,59769.0,0.0627]
[1724853437908,0.60608,59772.0,59769.0,0.0627]
[1724853438142,0.50608,59772.0,59771.0,0.502315]
[1724853438405,0.50608,59772.0,59771.0,0.584515]
[1724853438659,0.50608,59772.0,59771.0,0.919125]
[1724853439286,0.50108,59772.0,59771.0,0.919125]
[1724853439503,0.51008,59772.0,59771.0,0.919125]
[1724853439764,0.50108,59772.0,59771.0,0.919125]
[1724853440243,0.50308,59772.0,59771.0,1.51029577]
[1724853440526,0.50308,59772.0,59771.0,1.84490577]
[1724853440745,0.04995,59785.0,59784.0,1.24941234]
[1724853440993,0.04995,59785.0,59784.0,1.70842967]
[1724853441435,0.04995,59785.0,59784.0,1.73142967]
[1724853441696,0.04995,59785.0,59784.0,1.73069633]
[1724853442131,0.04995,59785.0,59784.0,2.07023333]
[1724853442354,0.04995,59785.0,59784.0,2.07096667]
[1724853442580,0.04995,59785.0,59784.0,1.53923556]